Workbook

Sheet Инструкция
B2: ="Код шаблона: " & Getcode() -> Код шаблона: ELPASS.JKH.OPEN.INFO.BALANCE.WARM
B3: ="Версия " & Getversion() & " от " & GetTemplateDate() -> Версия 1.0 от 01.10.2017
B5: =GetTemplateName() -> Показатели, подлежащие раскрытию теплоснабжающими, теплосетевыми организациями
E7: • На рабочем месте должна быть установлена полная версия приложения Microsoft Office Excel 2007 SP3, 2010, 2013, 2016. Microsoft Office Excel 2003 или иные офисные пакеты не поддерживаются. • Для корректной работы отчёта требуется включить макросы и выбрать низкий уровень безопасности: В меню MS Excel 2007/2010: Параметры Excel | Центр управления безопасностью | Параметры центра управления безопасностью | Параметры макросов | Включить все макросы | ОК • Не рекомендуется снимать защиту с листов и каким-либо образом модифицировать защищаемые формулы и расчётные поля. В случае внесения несанкционированных изменений отчёт будет отклонён системой • При сохранении не следует выбирать формат XLSX (Книга Excel), так как в указанном формате макросы, необходимые для работы отчёта, безвозвратно удаляются, а также форматы XLS или XLSB. Должен использоваться формат XLSM
E26: A | F26: - не обязательные для заполнения | O26: A | P26: - обязательные для заполнения
E27: A | F27: - заполняемые автоматически | O27: A | P27: - незаполняемые поля
E44: • При сохранении отчета осуществляется проверка корректности данных, в том числе на наличие значений в ячейках, обязательных для заполнения • Если какая-то ячейка не удовлетворяет условию проверки, на лист «Ошибки и предупреждения» добавляется гиперссылка на данную ячейку и указывается причина ошибки • В колонке «Статус» для каждого сообщения возможны 2 значения: ошибка и предупреждение • При наличии сообщений со статусом «Ошибка» отчет будет отклонён системой • Сообщения со статусом «Предупреждение» носят информационный характер, и такой отчет будет принят системой
E64: Служба технической поддержки группы компаний "Экстрим"
E65: E-mail: | G65: rek@xrm.ru
E66: Телефон: | G66: (343) 2222-139
E82: • На листах «Титульный», «Параметры» и «Территории» обязательно заполните все ячейки голубого цвета. Далее нажмите кнопку «Начать заполнение отчета». Отобразятся листы для заполнения. • Если в поле, обязательном для заполнении, для вашей организации показатель отсутствует, введите в поле «0» (для числовых показателей) и «-» (для текстовых). • Вводите дату непосредственно в ячейку в формате - 'ДД.ММ.ГГГГ'. • Для добавления гиперссылки дважды щелкните левой кнопкой мыши по ячейке и только после этого вставьте скопированный элемент. • Добавьте комментарии к раскрываемым сведениям на листе «Комментарии» (при необходимости).
E101: Данный шаблон разработан в соответствии с:
E102: • | F102: Постановлением Правительства РФ от 5 июля 2013 г. № 570 (в ред. от 31.08.2016 № 876) "О стандартах раскрытия информации теплоснабжающими организациями, теплосетевыми организациями и органами регулирования":
F105: II. Стандарты раскрытия информации регулируемыми организациями
G106: 15. Регулируемой организацией подлежит раскрытию информация: в) об основных показателях финансово-хозяйственной деятельности регулируемой организации, включая структуру основных производственных затрат (в части регулируемых видов деятельности); г) об основных потребительских характеристиках регулируемых товаров и услуг регулируемой организации; д) об инвестиционных программах регулируемой организации и отчетах об их реализации;
G112: 19. Информация об основных показателях финансово-хозяйственной деятельности регулируемой организации, включая структуру основных производственных затрат (в части регулируемых видов деятельности), содержит сведения:
G115: а) о выручке от регулируемого вида деятельности (тыс. рублей) с разбивкой по видам деятельности;
G117: б) о себестоимости производимых товаров (оказываемых услуг) по регулируемому виду деятельности (тыс. рублей), включая:
G119: расходы на покупаемую тепловую энергию (мощность), теплоноситель;
G120: расходы на топливо с указанием по каждому виду топлива стоимости (за единицу объема), объема и способа его приобретения, стоимости его доставки;
G122: расходы на покупаемую электрическую энергию (мощность), используемую в технологическом процессе (с указанием средневзвешенной стоимости 1 ), и объем приобретения электрической энергии;
G125: расходы на приобретение холодной воды, используемой в технологическом процессе;
G126: расходы на химические реагенты, используемые в технологическом процессе;
G127: расходы на оплату труда и отчисления на социальные нужды основного производственного персонала;
G129: расходы на оплату труда и отчисления на социальные нужды административно-управленческого персонала;
G131: расходы на амортизацию основных производственных средств;
G132: расходы на аренду имущества, используемого для осуществления регулируемого вида деятельности;
G134: общепроизводственные расходы, в том числе отнесенные к ним расходы на текущий и капитальный ремонт;
G136: общехозяйственные расходы, в том числе отнесенные к ним расходы на текущий и капитальный ремонт;
G138: расходы на капитальный и текущий ремонт основных производственных средств (в том числе информация об объемах товаров и услуг, их стоимости и способах приобретения у тех организаций, сумма оплаты услуг которых превышает 20 процентов суммы расходов по указанной статье расходов);
G142: прочие расходы, которые подлежат отнесению на регулируемые виды деятельности в соответствии с законодательством Российской Федерации;
G144: в) о чистой прибыли, полученной от регулируемого вида деятельности, с указанием размера ее расходования на финансирование мероприятий, предусмотренных инвестиционной программой регулируемой организации (тыс. рублей);
G147: г) об изменении стоимости основных фондов, в том числе за счет их ввода в эксплуатацию (вывода из эксплуатации), а также стоимости их переоценки (тыс. рублей);
G149: д) о валовой прибыли (убытках) от реализации товаров и оказания услуг по регулируемому виду деятельности (тыс. рублей);
G151: е) о годовой бухгалтерской отчетности, включая бухгалтерский баланс и приложения к нему (раскрывается регулируемой организацией, выручка от регулируемой деятельности которой превышает 80 процентов совокупной выручки за отчетный год);
G154: ж) об установленной тепловой мощности объектов основных фондов, используемых для осуществления регулируемых видов деятельности, в том числе по каждому источнику тепловой энергии (Гкал/ч);
G157: з) о тепловой нагрузке по договорам, заключенным в рамках осуществления регулируемых видов деятельности (Гкал/ч);
G159: и) об объеме вырабатываемой регулируемой организацией тепловой энергии в рамках осуществления регулируемых видов деятельности (тыс. Гкал);
G161: к) об объеме приобретаемой регулируемой организацией тепловой энергии в рамках осуществления регулируемых видов деятельности (тыс. Гкал);
G163: л) об объеме тепловой энергии, отпускаемой потребителям, по договорам, заключенным в рамках осуществления регулируемых видов деятельности, в том числе определенном по приборам учета и расчетным путем (нормативам потребления коммунальных услуг) (тыс. Гкал);
G167: м) о нормативах технологических потерь при передаче тепловой энергии, теплоносителя по тепловым сетям, утвержденных уполномоченным органом (Ккал/ч.мес.);
G169: н) о фактическом объеме потерь при передаче тепловой энергии (тыс. Гкал);
G170: о) о среднесписочной численности основного производственного персонала (человек);
G171: п) о среднесписочной численности административно-управленческого персонала (человек);
G172: р) об удельном расходе условного топлива на единицу тепловой энергии, отпускаемой в тепловую сеть, с разбивкой по источникам тепловой энергии, используемым для осуществления регулируемых видов деятельности (кг у. т./Гкал);
G175: с) об удельном расходе электрической энергии на производство (передачу) тепловой энергии на единицу тепловой энергии, отпускаемой потребителям по договорам, заключенным в рамках осуществления регулируемых видов деятельности ();
G178: т) об удельном расходе холодной воды на производство (передачу) тепловой энергии на единицу тепловой энергии, отпускаемой потребителям по договорам, заключенным в рамках осуществления регулируемых видов деятельности (куб. м/Гкал)
G181: 20. Информация об основных потребительских характеристиках регулируемых товаров и услуг регулируемой организации содержит сведения:
G183: а) о количестве аварий на тепловых сетях (единиц на километр);
G184: б) о количестве аварий на источниках тепловой энергии (единиц на источник);
G185: в) о показателях надежности и качества, установленных в соответствии с законодательством Российской Федерации;
G187: г) о доле числа исполненных в срок договоров о подключении (технологическом присоединении);
G189: д) о средней продолжительности рассмотрения заявок на подключение (технологическое присоединение) (дней);
G191: е) о выводе источников тепловой энергии, тепловых сетей из эксплуатации;
G192: ж) об основаниях приостановления, ограничения и прекращения режима потребления тепловой энергии в случаях, предусмотренных пунктами 70 и 76 Правил организации теплоснабжения в Российской Федерации, утвержденных постановлением Правительства Российской Федерации от 8 августа 2012 г. N 808 "Об организации теплоснабжения в Российской Федерации и о внесении изменений в некоторые акты Правительства Российской Федерации".
G197: з) о внесении изменений в инвестиционную программу.
G198: 21. Информация об инвестиционных программах регулируемой организации содержит сведения:
G200: а) о наименовании, дате утверждения и цели инвестиционной программы;
G201: б) о наименовании органа исполнительной власти субъекта Российской Федерации, утвердившего инвестиционную программу (органа местного самоуправления в случае передачи соответствующего полномочия), и о наименовании органа местного самоуправления, согласовавшего инвестиционную программу;
G205: в) о сроках начала и окончания реализации инвестиционной программы;
G206: г) о потребностях в финансовых средствах, необходимых для реализации инвестиционной программы, в том числе с разбивкой по годам, мероприятиям и источникам финансирования инвестиционной программы (тыс. рублей);
G209: д) о плановых значениях целевых показателей инвестиционной программы (с разбивкой по мероприятиям);
G211: е) о фактических значениях целевых показателей инвестиционной программы;
G212: ж) об использовании инвестиционных средств за отчетный год с разбивкой по кварталам, мероприятиям и источникам финансирования инвестиционной программы (тыс. рублей);
E214: Обязательность раскрытия информации и сроки раскрытия устанавливаются в соответствие с п.11. Постановления Правительства РФ от 5 июля 2013 г. N 570:
F216: 11. Регулируемые организации в течение 10 дней со дня размещения информации на своем официальном сайте в сети "Интернет" сообщают в орган исполнительной власти субъекта Российской Федерации в области государственного регулирования цен (тарифов) о раскрытии соответствующей информации с указанием адреса страницы сайта в сети "Интернет", на которой размещена эта информация. Регулируемые организации в течение 10 дней со дня опубликования информации в официальных печатных изданиях в случае, предусмотренном пунктом 10 настоящего документа, сообщают в орган исполнительной власти субъекта Российской Федерации в области государственного регулирования цен (тарифов) о раскрытии соответствующей информации с указанием наименования, номера и даты официального печатного издания, в котором опубликована эта информация.
E233: Гиперссылки на листах вводите, не нарушая цвет ячейки (если копируете гиперссылку из браузера, то выполните двойной щелчок левой кнопки мыши по ячейке и только после этого можете вставить скопированный элемент).
B239: =IF(GetMode()="DEBUG", "Режим отладки", "") -> 
B240: 2017 © Общество с ограниченной ответственностью "Элвинг"
E241: http://elpass.ru

Sheet Титульный
D3: =Getcode() -> ELPASS.JKH.OPEN.INFO.BALANCE.WARM | E3: =Инструкция!version -> Версия 1.0 от 01.10.2017
D4: =GetTemplateName() -> Показатели, подлежащие раскрытию теплоснабжающими, теплосетевыми организациями
D6: Субъект РФ | E6: Республика Башкортостан
D8: Отчетный период | E8: 2017
D10: Сведения о регулируемой организации
D11: Полное наименование организации | E11: ООО "Мечел-энерго"
D12: Сокращенное наименование организации | E12: ООО "Мечел-энерго"
D13: ОГРН | E13: 1027700016706
D14: ИНН | E14: 7722245108
D15: КПП | E15: 025643001
D16: Режим налогообложения | E16: Общий
D18: Сведения о филиале
D19: Является ли данное юридическое лицо филиалом другой организации
D20: Наименование филиала
D21: КПП филиала
D23: Адрес регулируемой организации
D24: Юридический адрес | E24: 454047, Российская Федерация, Челябинская область, г. Челябинск, ул. 2-я Павелецкая, д.14
D25: Почтовый адрес | E25: 453500, Республика Башкортостан, г. Белорецк, ул. Блюхер, д.1
D27: Руководитель регулируемой организации
D28: Фамилия | E28: Петров
D29: Имя | E29: Евгений
D30: Отчество (при наличии) | E30: Вячеславович
D31: Контактный телефон | E31: 8-34792-4-14-72
D33: Главный бухгалтер регулируемой организации
D34: Фамилия | E34: Якупова
D35: Имя | E35: Елена
D36: Отчество (при наличии) | E36: Диасовна
D37: Контактный телефон | E37: 8-34792-4-14-72
D39: Должностное лицо, ответственное за составление формы
A40: L11.1 | B40: Ответственный.ФИО | D40: Фамилия | E40: Климова
D41: Имя | E41: Ольга
D42: Отчество (при наличии) | E42: Дмитриевна
A43: L11.2 | B43: Ответственный.Должность | D43: Должность | E43: ведущий экономист
A44: L11.3 | B44: Ответственный.Телефон | D44: Контактный телефон | E44: 8-34792-4-14-72
A45: L11.4 | B45: Ответственный. E-Mail | D45: e-mail | E45: oklimova@belmk.ru

Sheet Параметры
D3: =Getcode() -> ELPASS.JKH.OPEN.INFO.BALANCE.WARM | E3: =Инструкция!version -> Версия 1.0 от 01.10.2017
D4: =GetTemplateName() -> Показатели, подлежащие раскрытию теплоснабжающими, теплосетевыми организациями
D8: Тип отчета | E8: Первичное раскрытие информации
D10: Вид регулируемой деятельности | E10: производство тепловой энергии (мощности) не в режиме комбинированной выработки электрической и тепловой энергии источниками тепловой энергии
D11: Укажите порядковый номер отчета | E11: 2
D13: Регулируемая организация осуществляет сдачу годового бухгалтерского баланса в налоговые органы | E13: да
D14: Дата направления годового бухгалтерского баланса в налоговые органы | E14: 2018-02-28
D16: Превышает ли выручка от регулируемой деятельности 80% совокупной выручки за отчетный год | E16: да
D17: Наличие товаров и услуг, приобретенных у организаций, сумма оплаты услуг которых превышает 20% суммы расходов по статье расходов на капитальный и текущий ремонт основных производственных средств | E17: нет
D19: По решению организации информация раскрыта на ее официальном сайте в сети Интернет | E19: да
D20: Отсутствует Интернет в границах территории муниципальных образований, где организация осуществляет регулируемые услуги | E20: нет
D21: Организация выполняет инвестиционную программу | E21: нет
D23: Наименование инвестиционной программы
D24: Дата утверждения инвестиционной программы
D25: Дата начала реализации инвестиционной программы
D26: Дата окончания реализации инвестиционной программы
D27: Цели инвестиционной программы
D28: Наименование органа исполнительной власти субъекта РФ, утвердившего инвестиционную программу (органа местного самоуправления в случае передачи полномочий)
D29: Наименование органа местного самоуправления,согласовавшего инвестиционную программу
D30: Вносились ли изменения в инвестиционную прогамму

Sheet Территории
F1: =Getcode() -> ELPASS.JKH.OPEN.INFO.BALANCE.WARM | L1: =Инструкция!version -> Версия 1.0 от 01.10.2017
F3: Информация о территориях действия тарифов (оказания услуг) регулируемой организации
F4: ООО "Мечел-энерго"
F6: Городской округ / муниципальный район | J6: Муниципальное образование
F7: № п/п | H7: Наименование | I7: № п/п | L7: Наименование | M7: ОКТМО | N7: Имя диапазона
D8: 1 | E8: МР | G8: 1 | H8: Белорецкий муниципальный район | I8: МО | K8: 1 | L8: Город Белорецк | M8: 80611101 | O8: MO_LIST_12 | AB8: 1
L9: Добавить МО | AI9: add_MO_range
H10: Добавить ГО / МР | AE10: add_MR_range

Sheet Показатели
A1: f
D3: =Getcode() -> ELPASS.JKH.OPEN.INFO.BALANCE.WARM | H3: =Инструкция!version -> Версия 1.0 от 01.10.2017
D4: Информация об основных показателях финансово-хозяйственной деятельности регулируемой организации, включая структуру основных производственных затрат (в части регулируемых видов деятельности)
D7: ООО "Мечел-энерго"
D9: № п/п | E9: Наименование показателя | F9: Значение | G9: Единица измерения | H9: Комментарии
D10: 1 | E10: 2 | F10: 3 | G10: 4 | H10: 5
D11: 1 | E11: Выручка от регулируемого вида деятельности с разбивкой по видам деятельности: | F11: =SUM(F12:F13) -> 97788.08 | G11: тыс. руб.
D12: 1.1 | E12: производство тепловой энергии (мощности) не в режиме комбинированной выработки электрической и тепловой энергии источниками тепловой энергии | F12: ='[3]калькуляция (%,ДЗ)'!$P$230 -> 97788.08 | G12: тыс. руб.
E13: Добавить вид деятельности | I13: add_TYPE_range
D14: 2 | E14: Себестоимость производимых товаров (оказываемых услуг) по регулируемому виду деятельности, включая: | F14: =SUM(F15:F16,F24,F27:F35,F38,F41:F42) -> 93211.41 | G14: тыс. руб.
D15: 2.1 | E15: Расходы на покупаемую тепловую энергию (мощность), теплоноситель | F15: 0.00 | G15: тыс. руб.
D16: 2.2 | E16: Расходы на топливо | F16: =SUM(IF(List10_FuelFlag="f",List10_Fuel)) -> 59512.92 | G16: тыс. руб.
D17: 2.2.0
C18: ы | D18: 2.2.1 | E18: природный газ | F18: =F19*F20+F21 -> 59512.92 | G18: f
E19: =D18 & ".1 Стоимость за единицу объема" -> 2.2.1.1 Стоимость за единицу объема | F19: ='[3]калькуляция (%,ДЗ)'!$P$49 -> 4284.04 | G19: руб/тыс.м3
E20: =D18 & ".2 Объем" -> 2.2.1.2 Объем | F20: ='[3]калькуляция (%,ДЗ)'!$P$48/1000 -> 13.89 | G20: тыс. руб. | H20: млн.м3
E21: =D18 & ".3 Стоимость доставки" -> 2.2.1.3 Стоимость доставки | F21: 0.00 | G21: тыс. руб. | H21: в стоимости
E22: =D18 & ".4 Способ приобретения" -> 2.2.1.4 Способ приобретения | F22: по договору
E23: Добавить вид топлива | I23: add_FUEL_range
D24: 2.3 | E24: Расходы на покупаемую электрическую энергию (мощность), используемую в технологическом процессе | F24: ='[3]калькуляция (%,ДЗ)'!$P$65 -> 9191.61 | G24: тыс. руб.
D25: 2.3.1 | E25: Средневзвешенная стоимость 1 кВт*ч ( с учетом мощности) | F25: ='[3]калькуляция (%,ДЗ)'!$P$149 -> 2.89 | G25: руб.
D26: 2.3.2 | E26: Объем приобретенной электрической энергии | F26: ='[3]калькуляция (%,ДЗ)'!$P$150 -> 3185.49 | G26: тыс. кВт*ч
D27: 2.4 | E27: Расходы на приобретение холодной воды, используемой в технологическом процессе | F27: ='[3]калькуляция (%,ДЗ)'!$P$33 -> 362.95 | G27: тыс. руб.
D28: 2.5 | E28: Расходы на химические реагенты, используемые в технологическом процессе | F28: ='[3]калькуляция (%,ДЗ)'!$P$40 -> 200.36 | G28: тыс. руб.
D29: 2.6 | E29: Расходы на оплату труда основного производственного персонала | F29: ='[3]калькуляция (%,ДЗ)'!$P$164+'[3]калькуляция (%,ДЗ)'!$P$170 -> 3771.01 | G29: тыс. руб.
D30: 2.7 | E30: Отчисления на социальные нужды основного производственного персонала | F30: ='[3]калькуляция (%,ДЗ)'!$P$180+'[3]калькуляция (%,ДЗ)'!$P$182 -> 1149.42 | G30: тыс. руб.
D31: 2.8 | E31: Расходы на оплату труда административно-управленческого персонала | F31: ='[3]калькуляция (%,ДЗ)'!$P$173 -> 1147.95 | G31: тыс. руб.
D32: 2.9 | E32: Отчисления на социальные нужды административно-управленческого персонала | F32: ='[3]калькуляция (%,ДЗ)'!$P$183 -> 331.56 | G32: тыс. руб.
D33: 2.10 | E33: Расходы на амортизацию основных производственных средств | F33: ='[3]калькуляция (%,ДЗ)'!$P$155 -> 218.30 | G33: тыс. руб.
D34: 2.11 | E34: Расходы на аренду имущества, используемого для осуществления регулируемого вида деятельности | F34: ='[3]калькуляция (%,ДЗ)'!$P$157 -> 682.05 | G34: тыс. руб.
D35: 2.12 | E35: Общепроизводственные расходы, в том числе отнесенные к ним: | F35: ='[3]калькуляция (%,ДЗ)'!$P$189+'[3]калькуляция (%,ДЗ)'!$P$41+'[3]калькуляция (%,ДЗ)'!$P$190 -> 898.52 | G35: тыс. руб.
D36: 2.12.1 | E36: Расходы на текущий ремонт | F36: 0.00 | G36: тыс. руб.
D37: 2.12.2 | E37: Расходы на капитальный ремонт | F37: 0.00 | G37: тыс. руб.
D38: 2.13 | E38: Общехозяйственные расходы, в том числе отнесенные к ним: | F38: ='[3]калькуляция (%,ДЗ)'!$P$191 -> 2060.64 | G38: тыс. руб.
D39: 2.13.1 | E39: Расходы на текущий ремонт | F39: 0.00 | G39: тыс. руб.
D40: 2.13.2 | E40: Расходы на капитальный ремонт | F40: 0.00 | G40: тыс. руб.
D41: 2.14 | E41: Расходы на капитальный и текущий ремонт основных производственных средств | F41: ='[3]калькуляция (%,ДЗ)'!$P$161+'[3]калькуляция (%,ДЗ)'!$P$162 -> 1468.32 | G41: тыс. руб.
D42: 2.15 | E42: Прочие расходы, которые подлежат отнесению на регулируемые виды деятельности в соответствии с законодательством Российской Федерации | F42: =SUM(F43:F46) -> 12215.81 | G42: тыс. руб.
D43: 2.15.0 | G43: тыс. руб. | H43: тыс. руб.
C44: ы | D44: 2.15.1 | E44: выплата процентов по договорам займа ООО Мечел-Энерго | F44: =[5]запрос!$B$30/1000 -> 4970.04 | G44: тыс. руб.
C45: ы | D45: 2.15.2 | E45: выпадающие расходы (списанная по суду дебиторская задолженность) | F45: =[5]запрос!$B$31/1000 -> 7245.78 | G45: тыс. руб.
E46: Добавить расходы | I46: add_IDEX_range
D47: 3 | E47: Чистая прибыль, полученная от регулируемого вида деятельности, в том числе: | F47: =F12-F14 -> 4576.67 | G47: тыс. руб.
D48: 3.1 | E48: Размер расходования чистой прибыли на финансирование мероприятий, предусмотренных инвестиционной программой | F48: 0.00 | G48: тыс. руб.
D49: 4 | E49: Сведения об изменении стоимости основных фондов, в том числе: | F49: =F50 -> 0.00 | G49: тыс. руб.
D50: 4.1 | E50: За счет ввода (вывода) из эксплуатации основных фондов | F50: 0.00 | G50: тыс. руб.
D51: 4.2 | E51: Стоимость переоценки основных фондов | F51: 0.00 | G51: тыс. руб.
D52: 5 | E52: Валовая прибыль (убытки) от реализации товаров и оказания услуг по регулируемому виду деятельности | F52: =F47 -> 4576.67 | G52: тыс. руб.
D53: 6 | E53: Годовая бухгалтерская отчетность, включая бухгалтерский баланс и приложения к нему | F53: http://mechel-energo.ru/disclosure_of_information/mechel/
D54: 7 | E54: Установленная тепловая мощность объектов основных фондов, используемых для осуществления регулируемых видов деятельности, в том числе по каждому источнику тепловой энергии: | F54: 100.00 | G54: Гкал/ч
D55: 7.0 | G55: Гкал/ч | H55: Гкал/ч
E56: Добавить источник тепловой энергии | I56: add_IDEX_GCAL_range
D57: 8 | E57: Тепловая нагрузка по договорам, заключенным в рамках осуществления регулируемых видов деятельности | F57: 33.68 | G57: Гкал/ч
D58: 9 | E58: Объем вырабатываемой регулируемой организацией тепловой энергии в рамках осуществления регулируемых видов деятельности | F58: ='[3]калькуляция (%,ДЗ)'!$P$20 -> 103.89 | G58: тыс Гкал
D59: 10 | E59: Объем приобретаемой регулируемой организацией тепловой энергии в рамках осуществления регулируемых видов деятельности | F59: 0.00 | G59: тыс Гкал
D60: 11 | E60: Объем тепловой энергии, отпускаемой потребителям по договорам, заключенным в рамках осуществления регулируемых видов деятельности, в том числе: | F60: =SUM(F61:F62) -> 102.54 | G60: тыс Гкал
D61: 11.1 | E61: Определенном по приборам учета | F61: 0.00 | G61: тыс Гкал
D62: 11.2 | E62: Определенном расчетным путем (нормативам потребления коммунальных услуг) | F62: ='[3]калькуляция (%,ДЗ)'!$P$25 -> 102.54 | G62: тыс Гкал
D63: 12 | E63: Нормативы технологических потерь при передаче тепловой энергии, теплоносителя по тепловым сетям, утвержденные уполномоченным органом | F63: 0.00 | G63: Ккал/ч.мес
D64: 13 | E64: Фактический объем потерь при передаче тепловой энергии | F64: =0 -> 0.00 | G64: тыс Гкал
D65: 14 | E65: Среднесписочная численность основного производственного персонала | F65: 16.00 | G65: человек
D66: 15 | E66: Среднесписочная численность административно-управленческого персонала | F66: 3.00 | G66: человек
D67: 16 | E67: Удельный расход условного топлива на единицу тепловой энергии, отпускаемой в тепловую сеть, в том числе с разбивкой по источникам тепловой энергии, используемым для осуществления регулируемых видов деятельности: | F67: =F20*1000/F62*1.163 -> 157.55 | G67: кг усл.топл./Гкал | H67: к=1.163
D68: 16.0 | G68: кг усл.топл./Гкал | H68: кг усл.топл./Гкал
E69: Добавить источник тепловой энергии | I69: add_IDEX_KG_range
D70: 17 | E70: Удельный расход электрической энергии на производство (передачу) тепловой энергии на единицу тепловой энергии, отпускаемой потребителям по договорам, заключенным в рамках осуществления регулируемых видов деятельности | F70: =F26/F58 -> 30.66 | G70: тыс. кВт*ч/Гкал
D71: 18 | E71: Удельный расход холодной воды на производство (передачу) тепловой энергии на единицу тепловой энергии, отпускаемой потребителям по договорам, заключенным в рамках осуществления регулируемых видов деятельности | F71: 0.99 | G71: куб. м/Гкал

Sheet Товары и услуги (hidden)
C3: =Getcode() -> ELPASS.JKH.OPEN.INFO.BALANCE.WARM | P3: =Инструкция!version -> Версия 1.0 от 01.10.2017
C4: Информация о товарах и услугах, приобретенных у организаций, сумма оплаты услуг которых превышает 20% от суммы расходов по статье. Их объемы, стоимость и способы приобретения.
C6: ООО "Мечел-энерго"
C8: Наименование поставщика | F8: Способ приобретения | I8: Реквизиты договора | J8: Наименование товара (услуги) | M8: Объем приобретенных товаров (услуг) | N8: Единица измерения объема товаров (услуг) | O8: Стоимость, тыс. руб. | P8: Доля расходов от суммы расходов по указанной статье, %
C9: 1 | F9: 2 | I9: 3 | J9: 4 | M9: 5 | N9: 6 | O9: 7 | P9: 8
C10: Статья: | D10: Расходы на ремонт (текущий и капитальный) основных производственных средств. | O10: =List10_RepairCosts -> 1468.32
E11: Добавить поставщика | Q11: add_PROVIDER_range

Sheet Потребительские характеристики
D3: =Getcode() -> ELPASS.JKH.OPEN.INFO.BALANCE.WARM | H3: =Инструкция!version -> Версия 1.0 от 01.10.2017
D4: Информация об основных потребительских характеристиках регулируемых товаров и услуг
D6: ООО "Мечел-энерго"
D8: № п/п | E8: Наименование показателя | F8: Значение | G8: Ссылка на документ, размещенный в Файловом хранилище документов Системы Эльпас | H8: Комментарии
D9: 1 | E9: 2 | F9: 3 | G9: 4 | H9: 5
D10: 1 | E10: Количество аварий на тепловых сетях (единиц на км) | F10: 0.00 | G10: х
D11: 2 | E11: Количество аварий на источниках тепловой энергии (единиц на источник) | F11: 0.00 | G11: х
D12: 3 | E12: Показатели надежности и качества, установленные в сответствии с законодательством РФ | F12: показатель надежности системы теплоснабжения 0.87 | G12: http://92.242.46.82/UserFile/Download?guid=57f887ce-b9ed-4e2e-af10-a9963be68c1f
D13: 4 | E13: Доля числа исполненных в срок договоров о подключении (технологическом присоединении), % | F13: 100.00 | G13: х
D14: 5 | E14: Средняя продолжительность рассмотрения заявок на подключение (технологическое присоединение), дней | F14: 2.00 | G14: х
D15: 6 | E15: Вывод источников тепловой энергии, тепловых сетей из эксплуатации (с указанием такого источника или тепловой сети и даты вывода из эксплуатации) ** | F15: 0
D16: 7 | E16: Основания приостановления, ограничения и прекращения режима потребления тепловой энергии в случаях, предусмотренных пунктами 70 и 76 Правил организации теплоснабжения в РФ, утвержденных постановлением Правительства РФ от 8 августа 2012 г. N 808 "Об организации теплоснабжения в РФ и о внесении изменений в некоторые акты Правительства РФ" *** (Собрание законодательства Российской Федерации, 2012, № 34, ст. 4734; 2016, №2, ст. 403; № 22 ст. 3228; № 29, ст. 4837; № 49 ст. 6906; 2017, № 8, ст. 1230) | F16: 0 | G16: http://92.242.46.82/UserFile/Download?guid=bc4183f8-c019-4b7c-be79-1afd9482ce8e
D21: ** | E21: Заполняется нарастающим итогом
D22: *** | E22: Заполняется в отношении каждого потребителя, в отношении которого введен режим приостановления, ограничения, прекращения потребления тепловой энергии с указанием оснований

Sheet Инвестиционная программа (hidden)
E3: =Getcode() -> ELPASS.JKH.OPEN.INFO.BALANCE.WARM | P3: =Инструкция!version -> Версия 1.0 от 01.10.2017
D4: Информация об инвестиционных программах регулируемой организации и отчетах об их реализации
B6: 3 | D6: Наименование мероприятия | F6: Срок реализации мероприятия | H6: Дифференциация по источникам финансирования / по целевым показателям | K6: Наименование показателя | L6: Год/квартал | O6: Значение | P6: Единицы измерения
F7: Дата начала | G7: Дата окончания
B8: 3 | D8: 1 | F8: 2 | G8: 3 | H8: 4 | K8: 5 | L8: 6 | O8: 7 | P8: 8
D9: 1 | I9: 1 | K9: Потребности в финансовых средствах, необходимых для реализации инвестиционной программы | M9: 1 | P9: тыс. руб.
N10: Добавить год | Z10: add_YEAR_range
K11: Использование инвестиционных средств за отчетный год | L11: I квартал | P11: тыс. руб.
L12: II квартал | P12: тыс. руб.
L13: III квартал | P13: тыс. руб.
L14: IV квартал | P14: тыс. руб.
J15: Добавить источник | V15: add_SOURCE_range
I16: 1 | J16: Целевой показатель инвестиционной программы: | L16: Плановое значение
L17: Фактическое значение
J18: Добавить показатель | V18: add_INVEST_INDEX_range
E19: Добавить мероприятие | Q19: add_EVENT_range

Sheet Изменения инвест. программы (hidden)
D3: =Getcode() -> ELPASS.JKH.OPEN.INFO.BALANCE.WARM | F3: =Инструкция!version -> Версия 1.0 от 01.10.2017
D4: Внесение изменений в инвестиционную программу
D6: ООО "Мечел-энерго"
B7: 3
B8: 3 | D8: № п/п | E8: Внесенные изменения | F8: Дата внесения изменений
B9: 3 | D9: 1 | E9: 2 | F9: 3
D10: 1
E11: Добавить строку | G11: add_INFO_range

Sheet Ссылки на публикации
A1: f
D3: =Getcode() -> ELPASS.JKH.OPEN.INFO.BALANCE.WARM | J3: =Инструкция!version -> Версия 1.0 от 01.10.2017
D4: Ссылки на публикации
D6: ООО "Мечел-энерго"
D8: № п/п | E8: Содержание пункта | F8: Наименование источника | G8: Дата размещения информации | H8: Номер издания | I8: Дата издания | J8: Адрес
D9: 1 | E9: 2 | F9: 3 | G9: 4 | H9: 5 | I9: 6 | J9: 7
D10: 1 | E10: Информация об основных показателях финансово-хозяйственной деятельности регулируемой организации, включая структуру основных производственных затрат (в части регулируемой деятельности) (п.19 Постановления Правительства РФ от 05 июля 2013г. №570 "О стандартах раскрытия информации теплоснабжающими, теплосетевыми организациями и органами регулирования")
E11: Сайт организации в сети Интернет | F11: официальный сайт ООО МЕЧЕЛ-ЭНЕРГО | G11: 2018-04-15 | H11: х | I11: х | J11: http://mechel-energo.ru/
E12: Печатное издание | K12: FHD
D13: 2 | E13: Информация об основных потребительских характеристиках регулируемых товаров и услуг, оказываемых регулируемой организацией (п.20 Постановления Правительства РФ от 05 июля 2013г. №570 "О стандартах раскрытия информации теплоснабжающими, теплосетевыми организациями и органами регулирования")
E14: Сайт организации в сети Интернет | F14: официальный сайт ООО МЕЧЕЛ-ЭНЕРГО | G14: 2018-01-15 | H14: х | I14: х | J14: http://mechel-energo.ru/
E15: Печатное издание | K15: FHD
D16: 3 | E16: Информация об инвестиционных программах регулируемой организации (п.21 Постановления Правительства РФ от 05 июля 2013г. №570 "О стандартах раскрытия информации теплоснабжающими, теплосетевыми организациями и органами регулирования")
E17: Сайт организации в сети Интернет | F17: официальный сайт ООО МЕЧЕЛ-ЭНЕРГО | G17: 2018-01-15 | H17: х | I17: х | J17: http://mechel-energo.ru/
E18: Печатное издание | K18: FHD
E19: Добавить публикацию | K19: add_PUBLIC_range

Sheet Сведения об изменениях (hidden)
D3: =Getcode() -> ELPASS.JKH.OPEN.INFO.BALANCE.WARM | F3: =Инструкция!version -> Версия 1.0 от 01.10.2017
D4: Сведения об изменениях
D6: ООО "Мечел-энерго"
B7: 3
B8: 3 | D8: № п/п | E8: Внесенные изменения | F8: Дата внесения изменений
B9: 3 | D9: 1 | E9: 2 | F9: 3
D10: 1
E11: Добавить строку | G11: add_INFO_range

Sheet Комментарий
B3: =Getcode()&" "&Инструкция!version -> ELPASS.JKH.OPEN.INFO.BALANCE.WARM Версия 1.0 от 01.10.2017
B4: =GetTemplateName() -> Показатели, подлежащие раскрытию теплоснабжающими, теплосетевыми организациями
B8: Комментарии регулируемой организации
B9: № | C9: Комментарий
B10: 1
C11: Добавить комментарий | D11: add_COMMENTS_range

Sheet Ошибки и предупреждения
B2: Результат проверки
B4: Ссылка | C4: Причина | D4: Статус

Sheet Columns (hidden)

Sheet Rows (hidden)
A1: add_COMMENTS_range | B1: лист Комментарий
A3: add_TYPE_range
G4: тыс. руб.
A5: add_IDEX_range
G6: тыс. руб.
A7: add_FUEL_range
F8: =F9*F10+F11 -> 0.00 | G8: f
E9: =D8 & ".1 Стоимость за единицу объема" -> .1 Стоимость за единицу объема
E10: =D8 & ".2 Объем" -> .2 Объем | G10: тыс. руб.
E11: =D8 & ".3 Стоимость доставки" -> .3 Стоимость доставки | G11: тыс. руб.
E12: =D8 & ".4 Способ приобретения" -> .4 Способ приобретения
A13: add_PROVIDER_range
D14: 1 | F14: Итого поставщику: | O14: =SUM(O15:O17) -> 0.00 | P14: =IFERROR(O14/List11_RepairCosts,0)*100 -> 0.00
G15: 1 | K15: 1
L16: Добавить товар(услугу) | X16: add_PRODUCT_range
H17: Добавить способ | T17: add_METHOD_range
A18: add_METHOD_range
G19: 1 | K19: 1
L20: Добавить товар(услугу) | X20: add_PRODUCT_range
A21: add_PRODUCT_range
K22: 1
A23: add_EVENT_range
D24: 1 | I24: 1 | K24: Потребности в финансовых средствах, необходимых для реализации инвестиционной программы | M24: 1 | P24: тыс. руб.
N25: Добавить год | Z25: add_YEAR_range
K26: Использование инвестиционных средств за отчетный год | L26: I квартал | P26: тыс. руб.
L27: II квартал | P27: тыс. руб.
L28: III квартал | P28: тыс. руб.
L29: IV квартал | P29: тыс. руб.
J30: Добавить источник | V30: add_SOURCE_range
I31: 1 | J31: Целевой показатель инвестиционной программы: | L31: Плановое значение
L32: Фактическое значение
J33: Добавить показатель | V33: add_INVEST_INDEX_range
A34: add_SOURCE_range
I35: 1 | K35: Потребности в финансовых средствах, необходимых для реализации инвестиционной программы | M35: 1 | P35: тыс. руб.
N36: Добавить год | Z36: add_YEAR_range
K37: Использование инвестиционных средств за отчетный год | L37: I квартал | P37: тыс. руб.
L38: II квартал | P38: тыс. руб.
L39: III квартал | P39: тыс. руб.
L40: IV квартал | P40: тыс. руб.
A41: add_YEAR_range
M42: 1 | P42: тыс. руб.
A43: add_INVEST_INDEX_range
I44: 1 | J44: Целевой показатель инвестиционной программы: | L44: Плановое значение
L45: Фактическое значение
A46: add_INFO_range
A48: add_PUBLIC_range
E50: Сайт организации в сети Интернет | H50: х | I50: х
E51: Печатное издание | K51: FHD
A52: add_IDEX_GCAL_range
G53: Гкал/ч
A54: add_IDEX_KG_range
G55: кг усл.топл./Гкал
A56: add_MO_range
D57: 1 | E57: МР | I57: МО | K57: 1 | AB57: 1
A58: add_MR_range
D59: 1 | E59: МР | G59: 1 | I59: МО | K59: 1 | AB59: 1
L60: Добавить МО | AI60: add_MO_range
A61: add_T_range
E62: МР | G62: 1 | I62: МО | K62: 1
L63: Добавить МО | AI63: add_MO_range
H64: Добавить ГО / МР | AE64: add_MR_range

Sheet RegistryMunicipal (hidden)
A1: MO1 | B1: МО1_ОКТМО | C1: ИМЯ ДИАПАЗОНА | E1: MO1 | F1: MO2 | G1: МО2_ОКТМО
A2: Абзелиловский муниципальный район | B2: 80601000 | C2: MO_LIST_2 | E2: Абзелиловский муниципальный район | F2: Все муниципальные образования | G2: 80601000
A3: Альшеевский муниципальный район | B3: 80602000 | C3: MO_LIST_3 | E3: Абзелиловский муниципальный район | F3: Альмухаметовский сельский совет | G3: 80601404
A4: Архангельский муниципальный район | B4: 80603000 | C4: MO_LIST_4 | E4: Абзелиловский муниципальный район | F4: Амангильдинский сельский совет | G4: 80601407
A5: Аскинский муниципальный район | B5: 80604000 | C5: MO_LIST_5 | E5: Абзелиловский муниципальный район | F5: Аскаровский сельский совет | G5: 80601410
A6: Аургазинский муниципальный район | B6: 80605000 | C6: MO_LIST_6 | E6: Абзелиловский муниципальный район | F6: Баимовский сельский совет | G6: 80601413
A7: Баймакский муниципальный район | B7: 80606000 | C7: MO_LIST_7 | E7: Абзелиловский муниципальный район | F7: Бурангуловский сельский совет | G7: 80601416
A8: Бакалинский муниципальный район | B8: 80607000 | C8: MO_LIST_8 | E8: Абзелиловский муниципальный район | F8: Гусевский сельский совет | G8: 80601419
A9: Балтачевский муниципальный район | B9: 80608000 | C9: MO_LIST_9 | E9: Абзелиловский муниципальный район | F9: Давлетовский сельский совет | G9: 80601422
A10: Белебеевский муниципальный район | B10: 80609000 | C10: MO_LIST_10 | E10: Абзелиловский муниципальный район | F10: Кирдасовский сельский совет | G10: 80601425
A11: Белокатайский муниципальный район | B11: 80610000 | C11: MR_LIST_11 | E11: Абзелиловский муниципальный район | F11: Краснобашкирский сельский совет | G11: 80601428
A12: Белорецкий муниципальный район | B12: 80611000 | C12: MO_LIST_12 | E12: Абзелиловский муниципальный район | F12: Равиловский сельский совет | G12: 80601431
A13: Бижбулякский муниципальный район | B13: 80612000 | C13: MO_LIST_13 | E13: Абзелиловский муниципальный район | F13: Ташбулатовский сельский совет | G13: 80601434
A14: Бирский муниципальный район | B14: 80613000 | C14: MO_LIST_14 | E14: Абзелиловский муниципальный район | F14: Таштимеровский сельский совет | G14: 80601437
A15: Благоварский муниципальный район | B15: 80614000 | C15: MO_LIST_15 | E15: Абзелиловский муниципальный район | F15: Халиловский сельский совет | G15: 80601440
A16: Благовещенский муниципальный район | B16: 80615000 | C16: MO_LIST_16 | E16: Абзелиловский муниципальный район | F16: Хамитовский сельский совет | G16: 80601443
A17: Буздякский муниципальный район | B17: 80617000 | C17: MO_LIST_17 | E17: Абзелиловский муниципальный район | F17: Янгильский сельский совет | G17: 80601446
A18: Бураевский муниципальный район | B18: 80618000 | C18: MO_LIST_18 | E18: Альшеевский муниципальный район | F18: Все муниципальные образования | G18: 80602000
A19: Бурзянский муниципальный район | B19: 80619000 | C19: MO_LIST_19 | E19: Альшеевский муниципальный район | F19: Абдрашитовский сельский совет | G19: 80602404
A20: Гафурийский муниципальный район | B20: 80621000 | C20: MO_LIST_20 | E20: Альшеевский муниципальный район | F20: Аксеновский сельский совет | G20: 80602406
A21: Город Агидель | B21: 80703000 | C21: MO_LIST_21 | E21: Альшеевский муниципальный район | F21: Воздвиженский сельский совет | G21: 80602413
A22: Город Кумертау | B22: 80723000 | C22: MO_LIST_22 | E22: Альшеевский муниципальный район | F22: Гайниямакский сельский совет | G22: 80602416
A23: Город Нефтекамск | B23: 80727000 | C23: MO_LIST_23 | E23: Альшеевский муниципальный район | F23: Зеленоклиновский сельский совет | G23: 80602418
A24: Город Октябрьский | B24: 80735000 | C24: MO_LIST_24 | E24: Альшеевский муниципальный район | F24: Ибраевский сельский совет | G24: 80602419
A25: Город Салават | B25: 80739000 | C25: MO_LIST_25 | E25: Альшеевский муниципальный район | F25: Казанский сельский совет | G25: 80602422
A26: Город Сибай | B26: 80743000 | C26: MO_LIST_26 | E26: Альшеевский муниципальный район | F26: Кармышевский сельский совет | G26: 80602428
A27: Город Стерлитамак | B27: 80745000 | C27: MO_LIST_27 | E27: Альшеевский муниципальный район | F27: Кипчак-Аскаровский сельский совет | G27: 80602431
A28: Город Уфа | B28: 80701000 | C28: MO_LIST_28 | E28: Альшеевский муниципальный район | F28: Кызыльский сельский совет | G28: 80602437
A29: Давлекановский муниципальный район | B29: 80622000 | C29: MO_LIST_29 | E29: Альшеевский муниципальный район | F29: Мендяновский сельский совет | G29: 80602440
A30: Дуванский муниципальный район | B30: 80623000 | C30: MO_LIST_30 | E30: Альшеевский муниципальный район | F30: Нигматуллинский сельский совет | G30: 80602443
A31: Дюртюлинский муниципальный район | B31: 80624000 | C31: MO_LIST_31 | E31: Альшеевский муниципальный район | F31: Нижнеаврюзовский сельский совет | G31: 80602446
A32: Ермекеевский муниципальный район | B32: 80625000 | C32: MO_LIST_32 | E32: Альшеевский муниципальный район | F32: Никифаровский сельский совет | G32: 80602449
A33: ЗАТО город Межгорье | B33: 80707000 | C33: MO_LIST_33 | E33: Альшеевский муниципальный район | F33: Раевский сельский совет | G33: 80602451
A34: Зианчуринский муниципальный район | B34: 80626000 | C34: MO_LIST_34 | E34: Альшеевский муниципальный район | F34: Слаковский сельский совет | G34: 80602455
A35: Зилаирский муниципальный район | B35: 80627000 | C35: MO_LIST_35 | E35: Альшеевский муниципальный район | F35: Ташлинский сельский совет | G35: 80602458
A36: Иглинский муниципальный район | B36: 80628000 | C36: MO_LIST_36 | E36: Альшеевский муниципальный район | F36: Трунтаишевский сельский совет | G36: 80602461
A37: Илишевский муниципальный район | B37: 80630000 | C37: MO_LIST_37 | E37: Альшеевский муниципальный район | F37: Чебенлинский сельский совет | G37: 80602464
A38: Ишимбайский муниципальный район | B38: 80631000 | C38: MO_LIST_38 | E38: Альшеевский муниципальный район | F38: Шафрановский сельский совет | G38: 80602470
A39: Калтасинский муниципальный район | B39: 80633000 | C39: MO_LIST_39 | E39: Архангельский муниципальный район | F39: Все муниципальные образования | G39: 80603000
A40: Караидельский муниципальный район | B40: 80634000 | C40: MO_LIST_40 | E40: Архангельский муниципальный район | F40: Абзановский сельский совет | G40: 80603404
A41: Кармаскалинский муниципальный район | B41: 80635000 | C41: MO_LIST_41 | E41: Архангельский муниципальный район | F41: Архангельский сельский совет | G41: 80603410
A42: Кигинский муниципальный район | B42: 80636000 | C42: MO_LIST_42 | E42: Архангельский муниципальный район | F42: Арх-Латышский сельский совет | G42: 80603413
A43: Краснокамский муниципальный район | B43: 80637000 | C43: MO_LIST_43 | E43: Архангельский муниципальный район | F43: Бакалдинский сельский совет | G43: 80603416
A44: Кугарчинский муниципальный район | B44: 80638000 | C44: MO_LIST_44 | E44: Архангельский муниципальный район | F44: Инзерский сельский совет | G44: 80603419
A45: Кушнаренковский муниципальный район | B45: 80640000 | C45: MO_LIST_45 | E45: Архангельский муниципальный район | F45: Ирныкшинский сельский совет | G45: 80603422
A46: Куюргазинский муниципальный район | B46: 80639000 | C46: MO_LIST_46 | E46: Архангельский муниципальный район | F46: Краснозилимский сельский совет | G46: 80603425
A47: Мелеузовский муниципальный район | B47: 80641000 | C47: MO_LIST_47 | E47: Архангельский муниципальный район | F47: Краснокуртовский сельский совет | G47: 80603428
A48: Мечетлинский муниципальный район | B48: 80642000 | C48: MO_LIST_48 | E48: Архангельский муниципальный район | F48: Липовский сельский совет | G48: 80603434
A49: Мишкинский муниципальный район | B49: 80643000 | C49: MO_LIST_49 | E49: Архангельский муниципальный район | F49: Орловский сельский совет | G49: 80603440
A50: Миякинский муниципальный район | B50: 80644000 | C50: MO_LIST_50 | E50: Архангельский муниципальный район | F50: Тавакачевский сельский совет | G50: 80603446
A51: Нуримановский муниципальный район | B51: 80645000 | C51: MO_LIST_51 | E51: Архангельский муниципальный район | F51: Узунларовский сельский совет | G51: 80603450
A52: Салаватский муниципальный район | B52: 80647000 | C52: MO_LIST_52 | E52: Аскинский муниципальный район | F52: Все муниципальные образования | G52: 80604000
A53: Стерлибашевский муниципальный район | B53: 80648000 | C53: MO_LIST_53 | E53: Аскинский муниципальный район | F53: Арбашевский сельский совет | G53: 80604402
A54: Стерлитамакский муниципальный район | B54: 80649000 | C54: MO_LIST_54 | E54: Аскинский муниципальный район | F54: Аскинский сельский совет | G54: 80604404
A55: Татышлинский муниципальный район | B55: 80650000 | C55: MO_LIST_55 | E55: Аскинский муниципальный район | F55: Евбулякский сельский совет | G55: 80604413
A56: Туймазинский муниципальный район | B56: 80651000 | C56: MO_LIST_56 | E56: Аскинский муниципальный район | F56: Казанчинский сельский совет | G56: 80604416
A57: Уфимский муниципальный район | B57: 80652000 | C57: MO_LIST_57 | E57: Аскинский муниципальный район | F57: Карткисяковский сельский совет | G57: 80604418
A58: Учалинский муниципальный район | B58: 80653000 | C58: MO_LIST_58 | E58: Аскинский муниципальный район | F58: Кашкинский сельский совет | G58: 80604419
A59: Федоровский муниципальный район | B59: 80654000 | C59: MO_LIST_59 | E59: Аскинский муниципальный район | F59: Ключевский сельский совет | G59: 80604425
A60: Хайбуллинский муниципальный район | B60: 80655000 | C60: MO_LIST_60 | E60: Аскинский муниципальный район | F60: Кубиязовский сельский совет | G60: 80604428
A61: Чекмагушевский муниципальный район | B61: 80656000 | C61: MO_LIST_61 | E61: Аскинский муниципальный район | F61: Кунгаковский сельский совет | G61: 80604431
A62: Чишминский муниципальный район | B62: 80657000 | C62: MO_LIST_62 | E62: Аскинский муниципальный район | F62: Кшлау-Елгинский сельский совет | G62: 80604437
A63: Шаранский муниципальный район | B63: 80658000 | C63: MO_LIST_63 | E63: Аскинский муниципальный район | F63: Мутабашевский сельский совет | G63: 80604440
A64: Янаульский муниципальный район | B64: 80659000 | C64: MO_LIST_64 | E64: Аскинский муниципальный район | F64: Петропавловский сельский совет | G64: 80604442
E65: Аскинский муниципальный район | F65: Султанбековский сельский совет | G65: 80604443
E66: Аскинский муниципальный район | F66: Урмиязовский сельский совет | G66: 80604446
E67: Аскинский муниципальный район | F67: Усть-Табасский сельский совет | G67: 80604450
E68: Аургазинский муниципальный район | F68: Все муниципальные образования | G68: 80605000
E69: Аургазинский муниципальный район | F69: Балыклыкульский сельский совет | G69: 80605402
E70: Аургазинский муниципальный район | F70: Батыровский сельский совет | G70: 80605404
E71: Аургазинский муниципальный район | F71: Бишкаинский сельский совет | G71: 80605407
E72: Аургазинский муниципальный район | F72: Ибраевский сельский совет | G72: 80605410
E73: Аургазинский муниципальный район | F73: Исмагиловский сельский совет | G73: 80605413
E74: Аургазинский муниципальный район | F74: Ишлинский сельский совет | G74: 80605416
E75: Аургазинский муниципальный район | F75: Кебячевский сельский совет | G75: 80605419
E76: Аургазинский муниципальный район | F76: Меселинский сельский совет | G76: 80605422
E77: Аургазинский муниципальный район | F77: Михайловский сельский совет | G77: 80605425
E78: Аургазинский муниципальный район | F78: Нагадакский сельский совет | G78: 80605428
E79: Аургазинский муниципальный район | F79: Новокальчировский сельский совет | G79: 80605431
E80: Аургазинский муниципальный район | F80: Семенкинский сельский совет | G80: 80605434
E81: Аургазинский муниципальный район | F81: Степановский сельский совет | G81: 80605437
E82: Аургазинский муниципальный район | F82: Султанмуратовский сельский совет | G82: 80605440
E83: Аургазинский муниципальный район | F83: Таштамакский сельский совет | G83: 80605443
E84: Аургазинский муниципальный район | F84: Толбазинский сельский совет | G84: 80605446
E85: Аургазинский муниципальный район | F85: Тряпинский сельский совет | G85: 80605449
E86: Аургазинский муниципальный район | F86: Тукаевский сельский совет | G86: 80605452
E87: Аургазинский муниципальный район | F87: Турумбетовский сельский совет | G87: 80605458
E88: Аургазинский муниципальный район | F88: Уршакский сельский совет | G88: 80605461
E89: Аургазинский муниципальный район | F89: Чуваш-Карамалинский сельский совет | G89: 80605472
E90: Баймакский муниципальный район | F90: Все муниципальные образования | G90: 80606000
E91: Баймакский муниципальный район | F91: 1-й Иткуловский сельский совет | G91: 80606416
E92: Баймакский муниципальный район | F92: Абдулкаримовский сельский совет | G92: 80606404
E93: Баймакский муниципальный район | F93: Акмурунский сельский совет | G93: 80606407
E94: Баймакский муниципальный район | F94: Бекешевский сельский совет | G94: 80606409
E95: Баймакский муниципальный район | F95: Биляловский сельский совет | G95: 80606410
E96: Баймакский муниципальный район | F96: Город Баймак | G96: 80606101
E97: Баймакский муниципальный район | F97: Зилаирский сельский совет | G97: 80606413
E98: Баймакский муниципальный район | F98: Ишбердинский сельский совет | G98: 80606428
E99: Баймакский муниципальный район | F99: Ишмурзинский сельский совет | G99: 80606422
E100: Баймакский муниципальный район | F100: Ишмухаметовский сельский совет | G100: 80606425
E101: Баймакский муниципальный район | F101: Кульчуровский сельский совет | G101: 80606437
E102: Баймакский муниципальный район | F102: Кусеевский сельский совет | G102: 80606431
E103: Баймакский муниципальный район | F103: Мерясовский сельский совет | G103: 80606438
E104: Баймакский муниципальный район | F104: Мукасовский сельский совет | G104: 80606434
E105: Баймакский муниципальный район | F105: Нигаматовский сельский совет | G105: 80606440
E106: Баймакский муниципальный район | F106: Семеновский сельский совет | G106: 80606442
E107: Баймакский муниципальный район | F107: Сибайский сельский совет | G107: 80606443
E108: Баймакский муниципальный район | F108: Тавлыкаевский сельский совет | G108: 80606446
E109: Баймакский муниципальный район | F109: Татлыбаевский сельский совет | G109: 80606449
E110: Баймакский муниципальный район | F110: Темясовский сельский совет | G110: 80606452
E111: Баймакский муниципальный район | F111: Тубинский сельский совет | G111: 80606453
E112: Баймакский муниципальный район | F112: Юмашевский сельский совет | G112: 80606455
E113: Баймакский муниципальный район | F113: Яратовский сельский совет | G113: 80606459
E114: Бакалинский муниципальный район | F114: Все муниципальные образования | G114: 80607000
E115: Бакалинский муниципальный район | F115: Ахмановский сельский совет | G115: 80607404
E116: Бакалинский муниципальный район | F116: Бакалинский сельский совет | G116: 80607407
E117: Бакалинский муниципальный район | F117: Бузюровский сельский совет | G117: 80607413
E118: Бакалинский муниципальный район | F118: Дияшевский сельский совет | G118: 80607419
E119: Бакалинский муниципальный район | F119: Камышлытамакский сельский совет | G119: 80607425
E120: Бакалинский муниципальный район | F120: Килеевский сельский совет | G120: 80607428
E121: Бакалинский муниципальный район | F121: Куштиряковский сельский совет | G121: 80607431
E122: Бакалинский муниципальный район | F122: Михайловский сельский совет | G122: 80607410
E123: Бакалинский муниципальный район | F123: Мустафинский сельский совет | G123: 80607434
E124: Бакалинский муниципальный район | F124: Новокатаевский сельский совет | G124: 80607440
E125: Бакалинский муниципальный район | F125: Новоурсаевский сельский совет | G125: 80607446
E126: Бакалинский муниципальный район | F126: Старокостеевский сельский совет | G126: 80607451
E127: Бакалинский муниципальный район | F127: Старокуручевский сельский совет | G127: 80607449
E128: Бакалинский муниципальный район | F128: Староматинский сельский совет | G128: 80607455
E129: Бакалинский муниципальный район | F129: Старошарашлинский сельский совет | G129: 80607458
E130: Бакалинский муниципальный район | F130: Тактагуловский сельский совет | G130: 80607461
E131: Бакалинский муниципальный район | F131: Урманаевский сельский совет | G131: 80607464
E132: Балтачевский муниципальный район | F132: Все муниципальные образования | G132: 80608000
E133: Балтачевский муниципальный район | F133: Богдановский сельский совет | G133: 80608404
E134: Балтачевский муниципальный район | F134: Верхнеянактаевский сельский совет | G134: 80608407
E135: Балтачевский муниципальный район | F135: Кундашлинский сельский совет | G135: 80608413
E136: Балтачевский муниципальный район | F136: Кунтугушевский сельский совет | G136: 80608416
E137: Балтачевский муниципальный район | F137: Нижнекарышевский сельский совет | G137: 80608419
E138: Балтачевский муниципальный район | F138: Нижнесикиязовский сельский совет | G138: 80608422
E139: Балтачевский муниципальный район | F139: Норкинский сельский совет | G139: 80608425
E140: Балтачевский муниципальный район | F140: Сейтяковский сельский совет | G140: 80608428
E141: Балтачевский муниципальный район | F141: Старобалтачевский сельский совет | G141: 80608431
E142: Балтачевский муниципальный район | F142: Староянбаевский сельский совет | G142: 80608434
E143: Балтачевский муниципальный район | F143: Тошкуровский сельский совет | G143: 80608437
E144: Балтачевский муниципальный район | F144: Тучубаевский сельский совет | G144: 80608440
E145: Балтачевский муниципальный район | F145: Шавьядинский сельский совет | G145: 80608441
E146: Балтачевский муниципальный район | F146: Штандинский сельский совет | G146: 80608443
E147: Балтачевский муниципальный район | F147: Ялангачевский сельский совет | G147: 80608448
E148: Белебеевский муниципальный район | F148: Все муниципальные образования | G148: 80609000
E149: Белебеевский муниципальный район | F149: Аксаковский сельский совет | G149: 80609401
E150: Белебеевский муниципальный район | F150: Анновский сельский совет | G150: 80609413
E151: Белебеевский муниципальный район | F151: Баженовский сельский совет | G151: 80609402
E152: Белебеевский муниципальный район | F152: Город Белебей | G152: 80609101
E153: Белебеевский муниципальный район | F153: Донской сельский совет | G153: 80609404
E154: Белебеевский муниципальный район | F154: Ермолкинский сельский совет | G154: 80609407
E155: Белебеевский муниципальный район | F155: Знаменский сельский совет | G155: 80609410
E156: Белебеевский муниципальный район | F156: Максим-Горьковский сельский совет | G156: 80609416
E157: Белебеевский муниципальный район | F157: Малиновский сельский совет | G157: 80609419
E158: Белебеевский муниципальный район | F158: Метевбашевский сельский совет | G158: 80609425
E159: Белебеевский муниципальный район | F159: Приютовский поссовет | G159: 80609165
E160: Белебеевский муниципальный район | F160: Рассветовский сельский совет | G160: 80609428
E161: Белебеевский муниципальный район | F161: Семенкинский сельский совет | G161: 80609431
E162: Белебеевский муниципальный район | F162: Слакбашевский сельский совет | G162: 80609434
E163: Белебеевский муниципальный район | F163: Тузлукушевский сельский совет | G163: 80609437
E164: Белебеевский муниципальный район | F164: Усень-Ивановский сельский совет | G164: 80609440
E165: Белебеевский муниципальный район | F165: Шаровский сельский совет | G165: 80609443
E166: Белокатайский муниципальный район | F166: Все муниципальные образования | G166: 80610000
E167: Белокатайский муниципальный район | F167: Атаршинский сельский совет | G167: 80610402
E168: Белокатайский муниципальный район | F168: Белянковский сельский совет | G168: 80610404
E169: Белокатайский муниципальный район | F169: Емашинский сельский совет | G169: 80610407
E170: Белокатайский муниципальный район | F170: Карлыхановский сельский совет | G170: 80610413
E171: Белокатайский муниципальный район | F171: Майгазинский сельский совет | G171: 80610416
E172: Белокатайский муниципальный район | F172: Нижнеискушинский сельский совет | G172: 80610419
E173: Белокатайский муниципальный район | F173: Новобелокатайский сельский совет | G173: 80610422
E174: Белокатайский муниципальный район | F174: Ногушинский сельский совет | G174: 80610425
E175: Белокатайский муниципальный район | F175: Старобелокатайский сельский совет | G175: 80610428
E176: Белокатайский муниципальный район | F176: Тардавский сельский совет | G176: 80610431
E177: Белокатайский муниципальный район | F177: Ургалинский сельский совет | G177: 80610434
E178: Белокатайский муниципальный район | F178: Утяшевский сельский совет | G178: 80610437
E179: Белокатайский муниципальный район | F179: Яныбаевский сельский совет | G179: 80610440
E180: Белорецкий муниципальный район | F180: Все муниципальные образования | G180: 80611000
E181: Белорецкий муниципальный район | F181: Абзаковский сельский совет | G181: 80611404
E182: Белорецкий муниципальный район | F182: Азикеевский сельский совет | G182: 80611407
E183: Белорецкий муниципальный район | F183: Ассинский сельский совет | G183: 80611410
E184: Белорецкий муниципальный район | F184: Верхнеавзянский сельский совет | G184: 80611415
E185: Белорецкий муниципальный район | F185: Город Белорецк | G185: 80611101
E186: Белорецкий муниципальный район | F186: Железнодорожный сельский совет | G186: 80611418
E187: Белорецкий муниципальный район | F187: Зигазинский сельский совет | G187: 80611416
E188: Белорецкий муниципальный район | F188: Зуяковский сельский совет | G188: 80611417
E189: Белорецкий муниципальный район | F189: Инзерский сельский совет | G189: 80611420
E190: Белорецкий муниципальный район | F190: Ишлинский сельский совет | G190: 80611422
E191: Белорецкий муниципальный район | F191: Кагинский сельский совет | G191: 80611425
E192: Белорецкий муниципальный район | F192: Ломовский сельский совет | G192: 80611427
E193: Белорецкий муниципальный район | F193: Николаевский сельский совет | G193: 80611434
E194: Белорецкий муниципальный район | F194: Нурский сельский совет | G194: 80611440
E195: Белорецкий муниципальный район | F195: Серменевский сельский совет | G195: 80611443
E196: Белорецкий муниципальный район | F196: Сосновский сельский совет | G196: 80611446
E197: Белорецкий муниципальный район | F197: Тирлянский сельский совет | G197: 80611448
E198: Белорецкий муниципальный район | F198: Туканский сельский совет | G198: 80611449
E199: Белорецкий муниципальный район | F199: Узянский сельский совет | G199: 80611452
E200: Белорецкий муниципальный район | F200: Шигаевский сельский совет | G200: 80611455
... 696 more rows

Sheet Reference (hidden)
A1: http://92.242.46.82/UserFile/Download?guid= | B1: Да/нет (BOOL) | C1: Тип отчета | D1: Источник финансирования financial source | E1: Вид регулируемой деятельности
B2: да | C2: Первичное раскрытие информации | D2: федеральный бюджет | E2: производство тепловой энергии (мощности) в режиме комбинированной выработки электрической и тепловой энергии источниками тепловой энергии с установленной генерирующей мощностью производства электрической энергии 25 МВт и более
B3: нет | C3: Корректировка ранее раскрытой информации | D3: бюджет субъекта РФ | E3: производство тепловой энергии (мощности) в режиме комбинированной выработки электрической и тепловой энергии источниками тепловой энергии с установленной генерирующей мощностью производства электрической энергии менее 25 МВт
C4: Изменения в раскрытой информации | D4: бюджет муниципального образования | E4: производство тепловой энергии (мощности) не в режиме комбинированной выработки электрической и тепловой энергии источниками тепловой энергии
D5: средства внебюджетных фондов | E5: производство теплоносителя
D6: кредиты банков | E6: передача тепловой энергии и теплоносителя
D7: кредиты иностранных банков | E7: сбыт тепловой энергии и теплоносителя
D8: заемные средства других организаций | E8: подключение к системе теплоснабжения
D9: прибыль, направляемая на инвестиции | E9: поддержание резервной тепловой мощности при отсутствии потребления тепловой энергии
D10: амортизация
D11: инвестиционная надбавка к тарифу
D12: плата за подключение
D13: прочие средства

Sheet SheetList (hidden)
A1: Расчетные листы | B1: Скрытые листы
A2: Инструкция | B2: Columns
A3: Титульный | B3: Rows
A4: Параметры | B4: Reference
A5: Показатели | B5: SheetList
A6: Товары и услуги | B6: RegistryMunicipal
A7: Потребительские характеристики
A8: Инвестиционная программа
A9: Изменения инвест. программы
A10: Ссылки на публикации
A11: Сведения об изменениях
A12: Комментарий
A13: Ошибки и предупреждения
H23: *
H30: *
D35: * кнопки "Сделать образец" и "Сделать шаблон" не проверяют правильность листов с тарифами и листа "Комментарий". Рекомендуется проверить эти листы вручную перед сохранением.
